[Event "British KO-ch Pre 2019"]
[Site "London"]
[Date "2019.11.30"]
[Round "9.5"]
[White "Fernandez, Daniel Howard"]
[Black "Pein, Jonathan"]
[Result "1-0"]
[ECO "A26"]
[WhiteElo "2444"]
[BlackElo "2151"]
[Annotator "RC"]
[PlyCount "103"]
[EventDate "2019.11.30"]
[EventType "k.o."]
[EventCountry "ENG"]
[SourceTitle "playchess.com"]
[Source "ChessBase"]
[SourceQuality "1"]
[TimeControl "600+5"]

1. Nf3 {[%emt 0:00:12]} d6 {[%emt 0:00:08]} 2. c4 {[%emt 0:00:14]} g6 {[%emt 0:00:11]} 3. g3 {[%emt 0:00:47]} Bg7 {[%emt 0:00:42]} 4. Nc3 {[%emt 0:00:24]} Nf6 {[%emt 0:00:20]} 5. Bg2 {[%emt 0:00:57]} O-O {[%emt 0:01:04]} 6. O-O {[%emt 0:00:59]} Nc6 {[%emt 0:00:53]} 7. d3 {[%emt 0:00:31]} e5 {[%emt 0:00:34]} 8. Rb1 {[%emt 0:00:21]} a5 {[%emt 0:00:22]} 9. a3 {[%emt 0:00:26]} Re8 {[%emt 0:00:30]} 10. Bg5 {[%emt 0:00:53]} h6 {[%emt 0:00:44]} 11. Bxf6 {[%emt 0:00:27]} Qxf6 {[%emt 0:00:30]} 12. b4 {[%emt 0:00:40]} axb4 {[%emt 0:00:43]} 13. axb4 {[%emt 0:00:04]} Qd8 {[%emt 0:00:43]} 14. e3 {[%emt 0:00:27]} Bd7 {[%emt 0:00:41]} 15. Nd2 {[%emt 0:00:36]} Qc8 {[%emt 0:00:13]} 16. b5 {[%emt 0:00:41]} Ne7 {[%emt 0:00:19]} 17. Ra1 {[%emt 0:00:27]} Rxa1 18. Qxa1 {[%emt 0:00:03]} Bh3 {[%emt 0:01:03]} 19. Qa7 {[%emt 0:00:26]} Bxg2 {[%emt 0:00:27]} 20. Kxg2 {[%emt 0:00:04]} f5 {[%emt 0:00:08]} 21. Nd5 {[%emt 0:01:04]} g5 {[%emt 0:00:14]} 22. Nxe7+ {[%emt 0:00:15]} Rxe7 {[%emt 0:00:06]} 23. Ra1 {[%emt 0:00:27]} Re8 {[%emt 0:00:16]} 24. c5 {[%emt 0:00:17]} e4 {[%emt 0:00:15]} 25. Ra3 {[%emt 0:00:13]} Rf8 {[%emt 0:00:17]} 26. dxe4 {[%emt 0:00:06]} fxe4 {[%emt 0:00:04]} 27. Qa4 {[%emt 0:00:05]} Qf5 {[%emt 0:00:09]} 28. Nxe4 {[%emt 0:00:06]} Qf3+ {[%emt 0:00:10]} 29. Kf1 {[%emt 0:00:04]} d5 {[%emt 0:00:12]} 30. Qb3 {[%emt 0:00:06]} Qxe4 {[%emt 0:00:03]} 31. Ra2 {[%emt 0:00:02]} Kh8 {[%emt 0:00:06]} 32. c6 {[%emt 0:00:02]} bxc6 {[%emt 0:00:05]} 33. bxc6 {[%emt 0:00:02]} Qh1+ {[%emt 0:00:04]} 34. Ke2 {[%emt 0:00:02]} Qxh2 {[%emt 0:00:04]} 35. Kf1 {[%emt 0:00:01]} Qh1+ {[%emt 0:00:02]} 36. Ke2 {[%emt 0:00:01]} Qf3+ {[%emt 0:00:03]} 37. Kf1 {[%emt 0:00:03]} Qxg3 {[%emt 0:00:10]} 38. Qxd5 {[%emt 0:00:07]} Qxe3 {[%emt 0:00:06]} 39. Re2 {[%emt 0:00:06]} Qh3+ {[%emt 0:00:21]} 40. Kg1 {[%emt 0:00:04]} Qg4+ {[%emt 0:00:03]} 41. Kf1 {[%emt 0:00:06]} Ra8 {[%emt 0:00:04]} 42. Re1 {[%emt 0:00:06]} h5 {[%emt 0:00:12]} 43. Qf7 {[%emt 0:00:08]} h4 {[%emt 0:00:06]} 44. Qxc7 {[%emt 0:00:07]} h3 {[%emt 0:00:05]} 45. Qd7 {[%emt 0:00:06]} Qg2+ {[%emt 0:00:03]} 46. Ke2 {[%emt 0:00:02]} Ra2+ {[%emt 0:00:04]} 47. Kd3 {[%emt 0:00:05]} Qf3+ {[%emt 0:00:09]} 48. Re3 {[%emt 0:00:13]} Ra3+ {[%emt 0:00:02]} 49. Kc4 {[%emt 0:00:06]} Qf4+ {[%emt 0:00:06]} 50. Kb5 {[%emt 0:00:08]} Rxe3 {[%emt 0:00:08]} 51. fxe3 {[%emt 0:00:06]} Qb8+ 52. Kc4 {[%emt 0:00:10]} 1-0